fUST/lending_fUST_20240803
["ID","MTS","AMOUNT","RATE_DAILY","PERIOD"]
[333932294,1722634242238,-500.0,0.00013972,2]
[333932295,1722634242247,-500.0,0.00013972,2]
[333932296,1722634242257,-500.0,0.00013972,2]
[333932297,1722634242266,-500.0,0.00013972,2]
[333932298,1722634242276,-500.0,0.00013972,2]
[333932299,1722634242286,-500.0,0.00013972,2]
[333932300,1722634242295,-500.0,0.00013972,2]
[333932301,1722634242304,-500.0,0.00013972,2]
[333932302,1722634242314,-707.39,0.00013972,2]
[333932303,1722634242324,-3342.56,0.00013972,2]
[333932304,1722634242334,-500.0,0.00013972,2]
[333932305,1722634242344,-500.0,0.00013972,2]
[333932306,1722634242353,-500.0,0.00013972,2]
[333932307,1722634242363,-500.0,0.00013972,2]
[333932308,1722634242372,-1440.92,0.00013972,2]
[333932309,1722634242382,-500.0,0.00013972,2]
[333932310,1722634242392,-500.0,0.00013972,2]
[333932311,1722634242402,-500.0,0.00013972,2]
[333932312,1722634242411,-500.0,0.00013972,2]
[333932313,1722634242421,-500.0,0.00013972,2]
[333932314,1722634242431,-500.0,0.00013972,2]
[333932315,1722634242441,-559.16,0.00013972,2]
[333932316,1722634242450,-500.0,0.00013972,2]
[333932317,1722634242461,-500.0,0.00013972,2]
[333932318,1722634242473,-500.0,0.00013972,2]
[333932319,1722634242483,-731.41,0.00013972,2]
[333932320,1722634242492,-500.0,0.00013972,2]
[333932321,1722634242502,-500.0,0.00013972,2]
[333932322,1722634242511,-500.0,0.00013972,2]
[333932323,1722634242520,-536.64,0.00013972,2]
[333932324,1722634242531,-500.0,0.00013972,2]
[333932325,1722634242541,-500.0,0.00013972,2]
[333932326,1722634242550,-500.0,0.00013972,2]
[333932327,1722634242560,-500.0,0.00013972,2]
[333932328,1722634242570,-1188.46,0.00013972,2]
[333932329,1722634242579,-500.0,0.00013972,2]
[333932330,1722634242590,-500.0,0.00013972,2]
[333932331,1722634242599,-1578.88,0.00013972,2]
[333932332,1722634242610,-500.0,0.00013972,2]
[333932333,1722634242620,-833.64,0.00013972,2]
[333932334,1722634242630,-500.0,0.00013972,2]
[333932335,1722634242639,-500.0,0.00013972,2]
[333932336,1722634242649,-500.0,0.00013972,2]
[333932337,1722634242658,-500.0,0.00013972,2]
[333932338,1722634242668,-500.0,0.00013972,2]
[333932339,1722634242677,-500.0,0.00013972,2]
[333932340,1722634242687,-500.0,0.00013972,2]
[333932341,1722634242697,-500.0,0.00013972,2]
[333932342,1722634242706,-500.0,0.00013972,2]
[333932343,1722634242716,-500.0,0.00013972,2]
[333932344,1722634242726,-500.0,0.00013972,2]
[333932345,1722634242735,-500.0,0.00013972,2]
[333932347,1722634242745,-500.0,0.00013972,2]
[333932348,1722634242755,-500.0,0.00013972,2]
[333932350,1722634242764,-500.0,0.00013972,2]
[333932351,1722634242773,-500.0,0.00013972,2]
[333932352,1722634242783,-500.0,0.00013972,2]
[333932354,1722634242792,-276.86,0.00013972,2]
[333932356,1722634242802,-1002.94,0.00013972,2]
[333932358,1722634242811,-521.98,0.00013972,2]
[333932360,1722634242821,-500.0,0.00013972,2]
[333932362,1722634242830,-500.0,0.00013972,2]
[333932364,1722634242840,-500.0,0.00013972,2]
[333932366,1722634242849,-500.0,0.00013972,2]
[333932368,1722634242858,-671.57,0.00013972,2]
[333932369,1722634242868,-500.0,0.00013972,2]
[333932370,1722634242877,-560.13,0.00013972,2]
[333932371,1722634242887,-500.0,0.00013972,2]
[333932372,1722634242897,-500.0,0.00013972,2]
[333932373,1722634242907,-500.0,0.00013972,2]
[333932374,1722634242917,-500.0,0.00013972,2]
[333932375,1722634242927,-500.0,0.00013972,2]
[333932376,1722634242937,-455.6842782,0.00013972,2]
[333932378,1722634242947,-500.0,0.00013972,2]
[333932380,1722634242956,-500.0,0.00013972,2]
[333932381,1722634242966,-500.0,0.00013972,2]
[333932383,1722634242975,-500.0,0.00013972,2]
[333932384,1722634242985,-685.27,0.00013972,2]
[333932385,1722634242995,-653.26,0.00013972,2]
[333932387,1722634243004,-2615.77,0.00013972,2]
[333932389,1722634243014,-500.0,0.00013972,2]
[333932390,1722634243024,-500.0,0.00013972,2]
[333932391,1722634243034,-500.0,0.00013972,2]
[333932392,1722634243044,-500.0,0.00013972,2]
[333932393,1722634243053,-500.0,0.00013972,2]
[333932395,1722634243063,-500.0,0.00013972,2]
[333932397,1722634243073,-500.0,0.00013972,2]
[333932398,1722634243082,-500.0,0.00013972,2]
[333932399,1722634243093,-500.0,0.00013972,2]
[333932400,1722634243103,-844.72,0.00013972,2]
[333932401,1722634243112,-500.0,0.00013972,2]
[333932402,1722634243122,-954.1,0.00013972,2]
[333932403,1722634243131,-500.0,0.00013972,2]
[333932404,1722634243141,-790.16,0.00013972,2]
[333932405,1722634243151,-500.0,0.00013972,2]
[333932407,1722634243160,-500.0,0.00013972,2]
[333932408,1722634243170,-500.0,0.00013972,2]
[333932409,1722634243180,-500.0,0.00013972,2]
[333932410,1722634243189,-500.0,0.00013972,2]
[333932411,1722634243199,-500.0,0.00013972,2]
[333932412,1722634243208,-200.0,0.00013973,2]
[333932413,1722634243217,-245.15242248,0.00014,2]
[333932414,1722634243228,-20628.24066286,0.00014,4]
[333932415,1722634243237,-29374.18270782,0.00014,2]
[333932416,1722634243247,-2000.0,0.00014036,2]
[333932417,1722634243256,-150.112233,0.000141,2]
[333932418,1722634243265,-157.73293,0.00014147,2]
[333932420,1722634243275,-191.433445,0.00014147,2]
[333932422,1722634243285,-159.297402,0.00014147,2]
[333932423,1722634243294,-159.297404,0.00014147,2]
[333932425,1722634243304,-191.433445,0.00014147,2]
[333932426,1722634243316,-150.112233,0.000142,2]
[333932427,1722634243326,-2002.87,0.000142,2]
[333932428,1722634243336,-20388.7423222,0.00014236,2]
[333932429,1722634243346,-561.84,0.00014244,2]
[333932430,1722634243358,-1381.49,0.00014245,2]
[333932431,1722634243367,-525.05,0.00014245,2]
[333932432,1722634243377,-561.84,0.00014245,2]
[333932433,1722634243386,-2301.46,0.00014245,2]
[333932435,1722634243396,-500.0,0.00014245,2]
[333932436,1722634243406,-500.0,0.00014246,2]
[333932437,1722634243415,-500.0,0.00014246,2]
[333932439,1722634243427,-500.0,0.00014246,2]
[333932441,1722634243437,-223.54715243,0.00014246,2]
[333932442,1722634243446,-500.0,0.00014246,2]
[333932443,1722634243456,-500.0,0.00014246,2]
[333932444,1722634243469,-500.0,0.00014246,2]
[333932445,1722634243479,-500.0,0.00014246,2]
[333932446,1722634243489,-500.0,0.00014246,2]
[333932447,1722634243498,-500.0,0.00014246,2]
[333932448,1722634243508,-528.6,0.00014246,2]
[333932449,1722634243519,-499.66354488,0.00014246,2]
[333932450,1722634243530,-500.0,0.00014246,2]
[333932451,1722634243541,-656.97,0.00014246,2]
[333932452,1722634243551,-500.0,0.00014246,2]
[333932453,1722634243561,-500.0,0.00014246,2]
[333932454,1722634243573,-500.0,0.00014246,2]
[333932455,1722634243583,-500.0,0.00014246,2]
[333932456,1722634243594,-674.5,0.00014246,2]
[333932457,1722634243604,-500.0,0.00014246,2]
[333932458,1722634243614,-387.08039737,0.00014246,2]
[333932459,1722634243625,-500.0,0.00014246,2]
[333932460,1722634243635,-500.0,0.00014246,2]
[333932461,1722634243645,-500.0,0.00014246,2]
[333932462,1722634243655,-707.39,0.00014246,2]
[333932463,1722634243665,-3342.56,0.00014246,2]
[333932464,1722634243675,-500.0,0.00014246,2]
[333932465,1722634243684,-500.0,0.00014246,2]
[333932467,1722634243694,-1440.92,0.00014246,2]
[333932468,1722634243704,-559.16,0.00014246,2]
[333932470,1722634243713,-512.56776529,0.00014246,2]
[333932472,1722634243723,-731.41,0.00014246,2]
[333932474,1722634243733,-521.24,0.00014246,2]
[333932476,1722634243742,-536.64,0.00014246,2]
[333932478,1722634243752,-500.0,0.00014246,2]
[333932480,1722634243761,-500.0,0.00014246,2]
[333932482,1722634243771,-1188.46,0.00014246,2]
[333932483,1722634243782,-500.0,0.00014246,2]
[333932484,1722634243799,-1578.88,0.00014246,2]
[333932485,1722634243889,-500.0,0.00014246,2]
[333932486,1722634243900,-833.64,0.00014246,2]
[333932487,1722634243910,-500.0,0.00014246,2]
[333932488,1722634243920,-500.0,0.00014246,2]
[333932489,1722634243930,-500.0,0.00014246,2]
[333932490,1722634243940,-500.0,0.00014246,2]
[333932491,1722634243949,-500.0,0.00014246,2]
[333932492,1722634243959,-500.0,0.00014246,2]
[333932493,1722634243969,-500.0,0.00014246,2]
[333932494,1722634243979,-500.0,0.00014246,2]
[333932495,1722634243988,-500.0,0.00014246,2]
[333932496,1722634243998,-500.0,0.00014246,2]
[333932497,1722634244008,-500.0,0.00014246,2]
[333932498,1722634244017,-500.0,0.00014246,2]
[333932499,1722634244026,-500.0,0.00014246,2]
[333932500,1722634244035,-500.0,0.00014246,2]
[333932501,1722634244045,-500.0,0.00014246,2]
[333932502,1722634244055,-1002.94,0.00014246,2]
[333932503,1722634244064,-521.98,0.00014246,2]
[333932504,1722634244074,-500.0,0.00014246,2]
[333932505,1722634244083,-500.0,0.00014246,2]
[333932506,1722634244093,-671.57,0.00014246,2]
[333932507,1722634244103,-560.13,0.00014246,2]
[333932508,1722634244112,-500.0,0.00014246,2]
[333932509,1722634244121,-500.0,0.00014246,2]
[333932510,1722634244131,-500.0,0.00014246,2]
[333932511,1722634244141,-500.0,0.00014246,2]
[333932512,1722634244150,-524.34719696,0.00014246,2]
[333932513,1722634244160,-500.0,0.00014246,2]
[333932514,1722634244169,-500.0,0.00014246,2]
[333932515,1722634244179,-500.0,0.00014246,2]
[333932516,1722634244188,-71.923507,0.00014246,2]
[333932517,1722634244281,-428.076493,0.00014246,2]
[333932518,1722634244290,-131.61376177,0.00014246,2]
[333932519,1722634244302,-553.65623823,0.00014246,2]
[333932520,1722634244312,-70.67321172,0.00014246,2]
[333932521,1722634244335,-582.58678828,0.00014246,2]
[333932522,1722634244346,-1190.01321172,0.00014246,2]
[333932523,1722634244358,-1425.75678828,0.00014246,2]
[333932524,1722634244369,-500.0,0.00014246,2]
[333932525,1722634244378,-500.0,0.00014246,2]
[333932526,1722634244387,-500.0,0.00014246,2]
[333932527,1722634244397,-500.0,0.00014246,2]
[333932528,1722634244406,-500.0,0.00014246,2]
[333932529,1722634244416,-844.72,0.00014246,2]
[333932530,1722634244428,-500.0,0.00014246,2]
[333932531,1722634244438,-954.1,0.00014246,2]
[333932532,1722634244447,-500.0,0.00014246,2]
[333932533,1722634244457,-790.16,0.00014246,2]
[333932534,1722634244471,-500.0,0.00014246,2]
[333932535,1722634244479,-500.0,0.00014246,2]
[333932536,1722634244488,-500.0,0.00014246,2]
[333932537,1722634244498,-500.0,0.00014246,2]
[333932538,1722634244508,-500.0,0.00014246,2]
[333932539,1722634244517,-500.0,0.00014246,2]
[333932540,1722634244527,-750.0,0.00014247,2]
[333932541,1722634244537,-150.112233,0.000143,2]
[333932542,1722634244546,-587.0,0.00014386,2]
[333932543,1722634244555,-1410.0,0.0001446,2]
[333932544,1722634244566,-150.0,0.0001446,2]
[333932545,1722634244575,-150.112233,0.000145,2]
[333932546,1722634244585,-159.297402,0.000145,2]
[333932547,1722634244594,-20388.7423222,0.0001451,2]
[333932548,1722634244603,-1381.49,0.00014519,2]
[333932549,1722634244613,-525.05,0.00014519,2]
[333932550,1722634244623,-561.84,0.00014519,2]
[333932551,1722634244631,-2301.46,0.00014519,2]
[333932552,1722634244641,-500.0,0.00014519,2]
[333932553,1722634244651,-9567.14217688,0.0001452,5]
[333932554,1722634244660,-500.0,0.0001452,2]
[333932555,1722634244670,-500.0,0.0001452,2]
[333932556,1722634244679,-636.06018327,0.0001452,2]
[333932557,1722634244688,-500.0,0.0001452,2]
[333932558,1722634244698,-500.0,0.0001452,2]
[333932559,1722634244707,-500.0,0.0001452,2]
[333932560,1722634244717,-214.80063749,0.0001452,2]
[333932561,1722634244727,-325.29883027,0.0001452,2]
[333932562,1722634244736,-528.6,0.0001452,2]
[333932563,1722634244746,-500.0,0.0001452,2]
[333932564,1722634244755,-656.97,0.0001452,2]
[333932565,1722634244765,-500.0,0.0001452,2]
[333932566,1722634244775,-500.0,0.0001452,2]
[333932567,1722634244784,-500.0,0.0001452,2]
[333932568,1722634244793,-674.5,0.0001452,2]
[333932569,1722634244803,-244.79485989,0.0001452,2]
[333932570,1722634244812,-500.0,0.0001452,2]
[333932571,1722634244822,-707.39,0.0001452,2]
[333932572,1722634244831,-3342.56,0.0001452,2]
[333932573,1722634244840,-500.0,0.0001452,2]
[333932574,1722634244850,-500.0,0.0001452,2]
[333932575,1722634244859,-1440.92,0.0001452,2]
[333932576,1722634244868,-559.16,0.0001452,2]
[333932577,1722634244878,-731.41,0.0001452,2]
[333932578,1722634244888,-536.64,0.0001452,2]
[333932579,1722634244897,-500.0,0.0001452,2]
[333932580,1722634244907,-500.0,0.0001452,2]
[333932581,1722634244917,-1188.46,0.0001452,2]
[333932582,1722634244926,-500.0,0.0001452,2]
[333932583,1722634244936,-1578.88,0.0001452,2]
[333932584,1722634244945,-500.0,0.0001452,2]
[333932585,1722634244955,-833.64,0.0001452,2]
[333932586,1722634244965,-500.0,0.0001452,2]
[333932587,1722634244974,-500.0,0.0001452,2]
[333932588,1722634244983,-500.0,0.0001452,2]
[333932589,1722634244993,-500.0,0.0001452,2]
[333932590,1722634245002,-500.0,0.0001452,2]
[333932591,1722634245012,-500.0,0.0001452,2]
[333932592,1722634245023,-500.0,0.0001452,2]
[333932593,1722634245032,-500.0,0.0001452,2]
[333932594,1722634245044,-500.0,0.0001452,2]
[333932595,1722634245055,-500.0,0.0001452,2]
[333932596,1722634245066,-500.0,0.0001452,2]
[333932597,1722634245077,-500.0,0.0001452,2]
[333932598,1722634245089,-500.0,0.0001452,2]
[333932599,1722634245100,-1002.94,0.0001452,2]
[333932600,1722634245110,-521.98,0.0001452,2]
[333932601,1722634245120,-500.0,0.0001452,2]
[333932602,1722634245129,-671.57,0.0001452,2]
[333932603,1722634245139,-560.13,0.0001452,2]
[333932604,1722634245149,-500.0,0.0001452,2]
[333932605,1722634245159,-500.0,0.0001452,2]
[333932606,1722634245170,-500.0,0.0001452,2]
[333932607,1722634245180,-500.0,0.0001452,2]
[333932608,1722634245191,-500.0,0.0001452,2]
[333932609,1722634245201,-685.27,0.0001452,2]
[333932610,1722634245211,-653.26,0.0001452,2]
[333932611,1722634245221,-2615.77,0.0001452,2]
[333932612,1722634245230,-500.0,0.0001452,2]
[333932613,1722634245240,-500.0,0.0001452,2]
[333932614,1722634245251,-500.0,0.0001452,2]
[333932615,1722634245260,-844.72,0.0001452,2]
[333932616,1722634245270,-954.1,0.0001452,2]
[333932617,1722634245279,-790.16,0.0001452,2]
[333932618,1722634245289,-500.0,0.0001452,2]
[333932619,1722634245299,-500.0,0.0001452,2]
[333932620,1722634245308,-500.0,0.0001452,2]
[333932621,1722634245318,-500.0,0.0001452,2]
[333932622,1722634245327,-3200.0,0.00014623,2]
[333932623,1722634245336,-276.63,0.00014623,2]
[333932624,1722634245346,-1381.49,0.00014679,2]
[333932625,1722634245357,-561.84,0.00014679,2]
[333932626,1722634245367,-561.84,0.00014679,2]
[333932627,1722634245376,-20388.7423222,0.0001468,2]
[333932628,1722634245386,-561.84,0.00014689,2]
[333932629,1722634245396,-561.84,0.00014689,2]
[333932630,1722634245404,-561.84,0.00014689,2]
[333932631,1722634245414,-100000.0,0.0001469,2]
[333932632,1722634245427,-150.112233,0.000147,2]
[333932633,1722634245446,-20388.7423222,0.00014784,2]
[333932634,1722634245455,-525.05,0.00014793,2]
[333932635,1722634245465,-561.84,0.00014793,2]
[333932636,1722634245479,-2301.46,0.00014793,2]
[333932638,1722634245488,-500.0,0.00014793,2]
[333932640,1722634245497,-500.0,0.00014794,2]
[333932641,1722634245506,-500.0,0.00014794,2]
[333932643,1722634245516,-500.0,0.00014794,2]
[333932645,1722634245525,-500.0,0.00014794,2]
[333932647,1722634245535,-528.6,0.00014794,2]
[333932648,1722634245544,-500.0,0.00014794,2]
[333932650,1722634245553,-656.97,0.00014794,2]
[333932651,1722634245562,-500.0,0.00014794,2]
[333932652,1722634245572,-500.0,0.00014794,2]
[333932653,1722634245581,-500.0,0.00014794,2]
[333932654,1722634245591,-674.5,0.00014794,2]
[333932655,1722634245600,-707.39,0.00014794,2]
[333932656,1722634245609,-3342.56,0.00014794,2]
[333932657,1722634245619,-500.0,0.00014794,2]
[333932658,1722634245628,-500.0,0.00014794,2]
[333932659,1722634245637,-1440.92,0.00014794,2]
[333932660,1722634245647,-559.16,0.00014794,2]
[333932661,1722634245657,-731.41,0.00014794,2]
[333932663,1722634245742,-536.64,0.00014794,2]
[333932665,1722634245752,-500.0,0.00014794,2]
[333932667,1722634245762,-500.0,0.00014794,2]
[333932669,1722634245772,-249.55825465,0.00014794,2]
[333932671,1722634245785,-938.90174535,0.00014794,2]
[333932673,1722634245795,-500.0,0.00014794,2]
[333932675,1722634245804,-1578.88,0.00014794,2]
[333932677,1722634245813,-500.0,0.00014794,2]
[333932679,1722634245823,-833.64,0.00014794,2]
[333932680,1722634245832,-500.0,0.00014794,2]
[333932681,1722634245842,-500.0,0.00014794,2]
[333932682,1722634245851,-500.0,0.00014794,2]
[333932683,1722634245860,-500.0,0.00014794,2]
[333932684,1722634245870,-500.0,0.00014794,2]
[333932685,1722634245879,-500.0,0.00014794,2]
[333932686,1722634245888,-500.0,0.00014794,2]
[333932687,1722634245898,-500.0,0.00014794,2]
[333932688,1722634245907,-500.0,0.00014794,2]
[333932689,1722634245918,-500.0,0.00014794,2]
[333932691,1722634245928,-500.0,0.00014794,2]
[333932693,1722634245937,-500.0,0.00014794,2]
[333932694,1722634245947,-1002.94,0.00014794,2]
[333932695,1722634245957,-521.98,0.00014794,2]
[333932696,1722634245967,-671.57,0.00014794,2]
[333932697,1722634245977,-560.13,0.00014794,2]
[333932698,1722634245986,-500.0,0.00014794,2]
[333932699,1722634245995,-500.0,0.00014794,2]
[333932700,1722634246007,-500.0,0.00014794,2]
[333932702,1722634246016,-500.0,0.00014794,2]
[333932703,1722634246025,-500.0,0.00014794,2]
[333932704,1722634246034,-685.27,0.00014794,2]
[333932705,1722634246044,-653.26,0.00014794,2]
[333932706,1722634246053,-2615.77,0.00014794,2]
[333932707,1722634246063,-500.0,0.00014794,2]
[333932708,1722634246072,-844.72,0.00014794,2]
[333932709,1722634246081,-954.1,0.00014794,2]
[333932710,1722634246091,-790.16,0.00014794,2]
[333932711,1722634246101,-500.0,0.00014794,2]
[333932712,1722634246110,-500.0,0.00014794,2]
[333932713,1722634246120,-500.0,0.00014794,2]
[333932714,1722634246131,-500.0,0.00014794,2]
[333932715,1722634246143,-191.433445,0.00014854,2]
[333932716,1722634246152,-159.297402,0.00014854,2]
[333932717,1722634246162,-150.112233,0.000149,2]
[333932718,1722634246172,-300.05141952,0.000149,2]
[333932719,1722634246182,-150.112233,0.000149,2]
[333932720,1722634246192,-419.33600404,0.000149,2]
[333932721,1722634246201,-6785.20926834,0.00015,2]
[333932722,1722634246211,-40777.4846445,0.00015057,2]
[333932723,1722634246221,-1381.49,0.00015057,2]
[333932724,1722634246231,-561.84,0.00015057,2]
[333932725,1722634246241,-67853.83542797,0.00015067,2]
[333932726,1722634246250,-525.05,0.00015067,2]
[333932727,1722634246259,-561.84,0.00015067,2]
[333932728,1722634246269,-2301.46,0.00015067,2]
[333932729,1722634246278,-500.0,0.00015067,2]
[333932730,1722634246287,-500.0,0.00015068,2]
[333932731,1722634246297,-500.0,0.00015068,2]
[333932732,1722634246307,-500.0,0.00015068,2]
[333932733,1722634246317,-500.0,0.00015068,2]
[333932734,1722634246327,-528.6,0.00015068,2]
[333932735,1722634246337,-500.0,0.00015068,2]
[333932736,1722634246347,-656.97,0.00015068,2]
[333932737,1722634246356,-477.59589182,0.00015068,2]
[333932738,1722634246365,-500.0,0.00015068,2]
[333932739,1722634246376,-500.0,0.00015068,2]
[333932740,1722634246385,-674.5,0.00015068,2]
[333932741,1722634246395,-707.39,0.00015068,2]
[333932742,1722634246406,-3342.56,0.00015068,2]
[333932743,1722634246416,-500.0,0.00015068,2]
[333932744,1722634246429,-500.0,0.00015068,2]
[333932745,1722634246439,-1440.92,0.00015068,2]
[333932746,1722634246450,-559.16,0.00015068,2]
[333932747,1722634246459,-731.41,0.00015068,2]
[333932748,1722634246472,-536.64,0.00015068,2]
[333932749,1722634246482,-500.0,0.00015068,2]
[333932750,1722634246492,-500.0,0.00015068,2]
[333932751,1722634246502,-1188.46,0.00015068,2]
[333932752,1722634246512,-500.0,0.00015068,2]
[333932753,1722634246522,-1578.88,0.00015068,2]
[333932754,1722634246531,-500.0,0.00015068,2]
[333932756,1722634246542,-833.64,0.00015068,2]
[333932758,1722634246553,-500.0,0.00015068,2]
[333932760,1722634246563,-223.54894498,0.00015068,2]
[333932762,1722634246572,-500.0,0.00015068,2]
[333932763,1722634246582,-500.0,0.00015068,2]
[333932765,1722634246593,-500.0,0.00015068,2]
[333932767,1722634246602,-296.98827779,0.00015068,2]
[333932769,1722634246612,-500.0,0.00015068,2]
[333932770,1722634246622,-500.0,0.00015068,2]
[333932771,1722634246633,-500.0,0.00015068,2]
[333932772,1722634246644,-500.0,0.00015068,2]
[333932773,1722634246653,-500.0,0.00015068,2]
[333932775,1722634246663,-500.0,0.00015068,2]
[333932776,1722634246673,-1002.94,0.00015068,2]
[333932778,1722634246682,-521.98,0.00015068,2]
[333932779,1722634246692,-671.57,0.00015068,2]
[333932780,1722634246702,-560.13,0.00015068,2]
[333932781,1722634246711,-500.0,0.00015068,2]
[333932782,1722634246722,-500.0,0.00015068,2]
[333932783,1722634246731,-500.0,0.00015068,2]
[333932784,1722634246741,-500.0,0.00015068,2]
[333932786,1722634246751,-685.27,0.00015068,2]
[333932787,1722634246761,-500.0,0.00015068,2]
[333932789,1722634246771,-653.26,0.00015068,2]
[333932790,1722634246781,-2615.77,0.00015068,2]
[333932791,1722634246791,-500.0,0.00015068,2]
[333932792,1722634246800,-844.72,0.00015068,2]
[333932793,1722634246810,-954.1,0.00015068,2]
[333932794,1722634246819,-790.16,0.00015068,2]
[333932795,1722634246828,-500.0,0.00015068,2]
[333932796,1722634246838,-500.0,0.00015068,2]
[333932797,1722634246848,-500.0,0.00015068,2]
[333932798,1722634246858,-500.0,0.00015068,2]
[333932799,1722634246867,-150.112233,0.000151,2]
[333932800,1722634246877,-1147.62598668,0.00015242,2]
[333932801,1722634246887,-150.112233,0.000153,2]
[333932802,1722634246896,-5114.55492866,0.00015332,5]
[333932804,1722634246906,-20388.7423222,0.00015332,2]
[333932806,1722634246917,-1381.49,0.00015341,2]
[333932807,1722634246928,-525.05,0.00015341,2]
[333932809,1722634246938,-2301.46,0.00015341,2]
[333932810,1722634246947,-500.0,0.00015342,2]
[333932812,1722634246957,-552.24965379,0.00015342,2]
[333932814,1722634246969,-500.0,0.00015342,2]
[333932816,1722634246979,-500.0,0.00015342,2]
[333932818,1722634246989,-528.6,0.00015342,2]
[333932820,1722634246999,-500.0,0.00015342,2]
[333932822,1722634247008,-656.97,0.00015342,2]
[333932825,1722634247018,-500.0,0.00015342,2]
[333932827,1722634247028,-500.0,0.00015342,2]
[333932830,1722634247039,-674.5,0.00015342,2]
[333932832,1722634247049,-707.39,0.00015342,2]
[333932834,1722634247059,-3342.56,0.00015342,2]
[333932836,1722634247068,-500.0,0.00015342,2]
[333932838,1722634247077,-500.0,0.00015342,2]
[333932840,1722634247088,-1440.92,0.00015342,2]
[333932842,1722634247097,-559.16,0.00015342,2]
[333932844,1722634247107,-731.41,0.00015342,2]
[333932846,1722634247117,-536.64,0.00015342,2]
[333932848,1722634247126,-500.0,0.00015342,2]
[333932850,1722634247137,-500.0,0.00015342,2]
[333932852,1722634247147,-1188.46,0.00015342,2]
[333932854,1722634247159,-500.0,0.00015342,2]
[333932856,1722634247168,-1578.88,0.00015342,2]
[333932858,1722634247178,-342.76388132,0.00015342,2]
[333932860,1722634247187,-833.64,0.00015342,2]
[333932862,1722634247197,-500.0,0.00015342,2]
[333932864,1722634247207,-315.50011359,0.00015342,2]
[333932865,1722634247216,-500.0,0.00015342,2]
[333932868,1722634247225,-500.0,0.00015342,2]
[333932870,1722634247235,-500.0,0.00015342,2]
[333932872,1722634247245,-500.0,0.00015342,2]
[333932874,1722634247254,-500.0,0.00015342,2]
[333932876,1722634247264,-500.0,0.00015342,2]
[333932878,1722634247274,-500.0,0.00015342,2]
[333932880,1722634247283,-500.0,0.00015342,2]
[333932881,1722634247292,-1002.94,0.00015342,2]
[333932883,1722634247302,-521.98,0.00015342,2]
[333932885,1722634247312,-671.57,0.00015342,2]
[333932887,1722634247321,-560.13,0.00015342,2]
[333932889,1722634247331,-500.0,0.00015342,2]
[333932891,1722634247340,-500.0,0.00015342,2]
[333932892,1722634247350,-500.0,0.00015342,2]
[333932893,1722634247360,-500.0,0.00015342,2]
[333932894,1722634247369,-685.27,0.00015342,2]
[333932895,1722634247380,-500.0,0.00015342,2]
[333932896,1722634247392,-653.26,0.00015342,2]
[333932897,1722634247475,-2615.77,0.00015342,2]
[333932898,1722634247485,-500.0,0.00015342,2]